[Event "41st Amateur D7"]
[Site "ChessGUI4"]
[Date "2013.07.10"]
[Round "31.1"]
[White "Carballo 0.8"]
[Black "Tigran 2.3 64-bit"]
[Result "0-1"]
[BlackElo "2289"]
[ECO "A21"]
[EventDate "2013.??.??"]
[TimeControl "40/1500:40/1500:40/1500"]
[WhiteElo "2273"]

{ i5 Quad } 1.c4 { [%eval 0,1] [%emt 0:00:00] } 1...f5
{ [%eval 0,1] [%emt 0:00:00] } 2.g3 { [%eval 0,1] [%emt 0:00:00] } 2...Nf6
{ [%eval 0,1] [%emt 0:00:00] } 3.Bg2 { [%eval 0,1] [%emt 0:00:00] } 3...e5
{ [%eval 0,1] [%emt 0:00:00] } 4.Nc3 { [%eval 0,1] [%emt 0:00:00] } 4...d6
{ [%eval 0,1] [%emt 0:00:00] } 5.d4 { [%eval 0,1] [%emt 0:00: 00] } 5...c6
{ [%eval 0,1] [%emt 0:00:00] } 6.Nf3 { [%eval 0,1] [%emt 0:00:00] } 6...e4
{ [%eval 0,1] [%emt 0:00:00] } 7.Ng5 { [%eval 0,1] [%emt 0:00:00] } 7...d5
{ [%eval 0,1] [%emt 0:00:00] } 8.cxd5 { [%eval 0,1] [%emt 0:00:00] } 8...cxd5
{ [%eval 0,1] [%emt 0: 00:00] } 9.h4 { [%eval 20,12] [%emt 0:00:37] } 9...Nc6
{ [%eval 20,12] [%emt 0:00:42] (Nc6) } 10.O-O
{ [%eval 13,13] [%emt 0:00:36] (e1g1) } 10...Qb6
{ [%eval 14,12] [%emt 0:00:42] (Bd6) } 11.e3
{ [%eval 0,12] [%emt 0:00:35] (Nh3) } 11...Bd6
{ [%eval 17,12] [%emt 0:00:42] (Bd6) } 12.Qb3
{ [%eval 0,12] [%emt 0:00:34] (f3) } 12...Qxb3
{ [%eval 78,14] [%emt 0:00:42] (O-O) } 13.axb3
{ [%eval 4,14] [%emt 0:00:33] (axb3) } 13...Bd7
{ [%eval 79,13] [%emt 0:00:42] (O-O) } 14.Bd2
{ [%eval 7,13] [%emt 0:00:32] (Bd2) } 14...Rc8
{ [%eval 75,13] [%emt 0:00:43] (O-O) } 15.Nh3
{ [%eval 18,13] [%emt 0:00: 32] (Nh3) } 15...a6
{ [%eval 65,13] [%emt 0:00:43] (O-O) } 16.Na4
{ [%eval 19,14] [%emt 0:00:31] (Na4) } 16...Nd8
{ [%eval 47,13] [%emt 0:00:43] (O-O) } 17.Rfc1
{ [%eval 36,14] [%emt 0:00:30] (Rfc1) } 17...Rxc1+
{ [%eval 31,13] [%emt 0:00:43] (Rc6) } 18.Rxc1
{ [%eval 9,16] [%emt 0:00:29] (Rxc1) } 18...h6
{ [%eval 37,14] [%emt 0:00:43] (Bxa4) } 19.Nb6
{ [%eval 35,14] [%emt 0:00:29] (Nc5) } 19...Ne6
{ [%eval 60,14] [%emt 0:00:43] (Ne6) } 20.Nc8
{ [%eval 27,14] [%emt 0:00:28] (Nf4) } 20...Bf8
{ [%eval 56,14] [%emt 0:00:44] (Bb8) } 21.Nf4
{ [%eval 26,14] [%emt 0:00:27] (Nf4) } 21...Nxf4
{ [%eval 53,14] [%emt 0:00:44] (Nxf4) } 22.exf4
{ [%eval 27,16] [%emt 0:00:26] (gxf4) } 22...Rg8
{ [%eval 52,14] [%emt 0:00:41] (g6) } 23.Nb6
{ [%eval 20,14] [%emt 0: 00:26] (Ba5) } 23...Bd6
{ [%eval 58,15] [%emt 0:00:40] (Bd6) } 24.b4
{ [%eval 19,14] [%emt 0:00:25] (b4) } 24...Bb5
{ [%eval 34,15] [%emt 0:00:45] (Kf7) } 25.Bf1
{ [%eval 21,15] [%emt 0:00:24] (Bh3) } 25...Bxf1
{ [%eval 76,16] [%emt 0:00:42] (Bxf1) } 26.Kxf1
{ [%eval 13,16] [%emt 0:00:24] (Kxf1) } 26...Kf7
{ [%eval 67,16] [%emt 0:00:46] (Kf7) } 27.b3
{ [%eval 17,15] [%emt 0:00:23] (b5) } 27...Re8
{ [%eval 93,15] [%emt 0: 00:46] (Re8) } 28.Kg2
{ [%eval 11,15] [%emt 0:00:23] (b5) } 28...Re6
{ [%eval 95,15] [%emt 0:00:46] (h5) } 29.Na4
{ [%eval 10,16] [%emt 0:00:22] (Nc8) } 29...Bb8
{ [%eval 82,15] [%emt 0:00:47] (h5) } 30.Rc8
{ [%eval 36,13] [%emt 0:00:21] (b5) } 30...Re8
{ [%eval 73,18] [%emt 0:00:47] (Bd6) } 31.Rc1
{ [%eval 18,16] [%emt 0:00:21] (Rxe8) } 31...Kg6
{ [%eval 82,14] [%emt 0:00:45] (Ba7) } 32.Nc5
{ [%eval 11,14] [%emt 0:00:20] (b5) } 32...Re7
{ [%eval 92,16] [%emt 0:00:49] (Re7) } 33.Na4
{ [%eval 13,14] [%emt 0:00:20] (b5) } 33...Bd6
{ [%eval 91,15] [%emt 0:00:49] (Bd6) } 34.Rc8
{ [%eval 9,16] [%emt 0:00:19] (Kg1) } 34...Re8
{ [%eval 95,15] [%emt 0:00:50] (Re8) } 35.Rc1
{ [%eval 8,16] [%emt 0:00:19] (Rc1) } 35...Kh7
{ [%eval 88,15] [%emt 0:00:50] (h5) } 36.Nb2
{ [%eval 10,14] [%emt 0:00:18] (Nb6) } 36...g6
{ [%eval 92,14] [%emt 0:00:46] (Kg8) } 37.Na4
{ [%eval 15,16] [%emt 0:00:18] (Na4) } 37...Kh8
{ [%eval 89,14] [%emt 0:00: 42] (h5) } 38.Nc5
{ [%eval 17,14] [%emt 0:00:17] (b5) } 38...Rb8
{ [%eval 76,16] [%emt 0:00:57] (Re7) } 39.Ne6
{ [%eval 23,13] [%emt 0:00:17] (Ra1) } 39...Ra8
{ [%eval 75,14] [%emt 0:00:52] (Kg8) } 40.Nc5
{ [%eval 21,14] [%emt 0:00:16] (Nc5) } 40...Rc8
{ [%eval 48,16] [%emt 0:01:16] (Rc8) } 41.Bc3
{ [%eval 18,15] [%emt 0:00:54] (Nxb7) } 41...Rc7
{ [%eval 74,15] [%emt 0:00:27] (Kh7) } 42.Ne6
{ [%eval 10,17] [%emt 0:00:52] (Ra1) } 42...Rc6
{ [%eval 91,16] [%emt 0:00:34] (Rc8) } 43.Nc5
{ [%eval 16,16] [%emt 0:00:51] (Nd8) } 43...Rb6
{ [%eval 104,15] [%emt 0:00:34] (Kg8) } 44.Rd1
{ [%eval 2,15] [%emt 0:00:50] (Kf1) } 44...Kg8
{ [%eval 102,15] [%emt 0:00:33] (Kg7) } 45.Ra1
{ [%eval -4,16] [%emt 0:00:48] (Ra1) } 45...Kf8
{ [%eval 101,15] [%emt 0:00:34] (Be7) } 46.Ra5
{ [%eval 1,15] [%emt 0:00:47] (Kf1) } 46...Kf7
{ [%eval 95,15] [%emt 0: 00:34] (Kf7) } 47.Bd2
{ [%eval -1,16] [%emt 0:00:46] (b5) } 47...Be7
{ [%eval 83,13] [%emt 0:00:28] (Bf8) } 48.Kf1
{ [%eval -3,17] [%emt 0:00:45] (b5) } 48...Ke8
{ [%eval 79,14] [%emt 0:00:32] (h5) } 49.Ke2
{ [%eval -1,15] [%emt 0:00:44] (b5) } 49...Kd8
{ [%eval 71,15] [%emt 0:00:35] (Bf8) } 50.Bc3
{ [%eval -5,15] [%emt 0:00:43] (Na4) } 50...Kc7
{ [%eval 86,14] [%emt 0:00:35] (Kc7) } 51.Ra1
{ [%eval -19,14] [%emt 0:00: 42] (Ra1) } 51...Kc8
{ [%eval 91,15] [%emt 0:00:34] (Ng4) } 52.Rc1
{ [%eval 5,15] [%emt 0:00:40] (Na4) } 52...Kd8
{ [%eval 89,14] [%emt 0:00:35] (h5) } 53.Na4
{ [%eval 1,14] [%emt 0:00:39] (Ra1) } 53...Rb5
{ [%eval 102,15] [%emt 0:00:36] (Rb5) } 54.Nc5
{ [%eval -27,15] [%emt 0:00:38] (Nc5) } 54...Ke8
{ [%eval 100,14] [%emt 0:00:28] (Ng4) } 55.Ra1
{ [%eval -7,15] [%emt 0:00:37] (Ra1) } 55...Bd8
{ [%eval 100,15] [%emt 0:00:29] (Kf7) } 56.Ne6
{ [%eval -7,16] [%emt 0:00:37] (Kf1) } 56...Ke7
{ [%eval 101,15] [%emt 0:00:36] (Ke7) } 57.Nc5
{ [%eval -20,15] [%emt 0:00:35] (Nc5) } 57...Bc7
{ [%eval 99, 15] [%emt 0:00:36] (h5) } 58.Bd2
{ [%eval -7,14] [%emt 0:00:35] (Rg1) } 58...Kf7
{ [%eval 99,15] [%emt 0:00:37] (Kf7) } 59.Ra2
{ [%eval -7,15] [%emt 0:00:34] (Bc3) } 59...Ke8
{ [%eval 99,14] [%emt 0:00:37] (Bd6) } 60.Bc3
{ [%eval -3,15] [%emt 0:00: 33] (Bc3) } 60...Ke7
{ [%eval 97,14] [%emt 0:00:37] (Kf7) } 61.Bd2
{ [%eval -18,13] [%emt 0:00:32] (Ra1) } 61...Bd6
{ [%eval 100,14] [%emt 0:00:37] (Bd6) } 62.Bc3
{ [%eval -38,15] [%emt 0:00:31] (Bc3) } 62...Nd7
{ [%eval 101,15] [%emt 0:00:30] (Nd7) } 63.Ke3
{ [%eval -43,15] [%emt 0:00:31] (Ke3) } 63...Bc7
{ [%eval 98,15] [%emt 0:00:38] (Nb8) } 64.Be1
{ [%eval -23,13] [%emt 0:00:30] (Ra1) } 64...Nf6
{ [%eval 99,14] [%emt 0:00:38] (Nxc5) } 65.Ke2
{ [%eval -16,15] [%emt 0:00:29] (Ke2) } 65...Bd8
{ [%eval 98, 15] [%emt 0:00:30] (h5) } 66.Na4
{ [%eval -9,14] [%emt 0:00:28] (Ra1) } 66...Bb6
{ [%eval 114,16] [%emt 0:00:36] (Bb6) } 67.Bc3
{ [%eval -18,16] [%emt 0:00:28] (Bc3) } 67...Ng4
{ [%eval 118,15] [%emt 0:00:39] (Nd7) } 68.f3
{ [%eval -38,14] [%emt 0:00:27] (f3) } 68...Nh2
{ [%eval 133,16] [%emt 0:00:31] (Nh2) } 69.fxe4
{ [%eval -51, 15] [%emt 0:00:26] (fxe4) } 69...fxe4
{ [%eval 132,15] [%emt 0:00:41] (fxe4) } 70.Ke3
{ [%eval -54,14] [%emt 0:00:26] (Nc5) } 70...Ng4+
{ [%eval 148,14] [%emt 0:00:38] (Nf3) } 71.Kd2
{ [%eval -55,15] [%emt 0:00:25] (Kd2) } 71...h5
{ [%eval 149,14] [%emt 0:00: 42] (Nf2) } 72.Nc5
{ [%eval -40,13] [%emt 0:00:24] (Bb2) } 72...Bc7
{ [%eval 172,14] [%emt 0:00:42] (a5) } 73.Ra1
{ [%eval -39,13] [%emt 0:00:24] (Ke2) } 73...Nh6
{ [%eval 190,15] [%emt 0:00:43] (Kf7) } 74.Ke3
{ [%eval -86,15] [%emt 0:00:23] (Ke2) } 74...Nf5+
{ [%eval 212,15] [%emt 0:00:43] (Nf5) } 75.Kf2
{ [%eval -74,15] [%emt 0:00:22] (Kf2) } 75...Bd6
{ [%eval 223,14] [%emt 0:00:44] (Bb6) } 76.Ra3
{ [%eval -132,13] [%emt 0:00:22] (Rc1) } 76...Kf7
{ [%eval 227,14] [%emt 0:00:45] (Kf7) } 77.Ra2
{ [%eval -133,14] [%emt 0:00:21] (Kg2) } 77...Bxc5
{ [%eval 248,16] [%emt 0:00: 46] (e3) } 78.dxc5
{ [%eval -137,15] [%emt 0:00:21] (dxc5) } 78...d4
{ [%eval 250,17] [%emt 0:00:48] (d4) } 79.Be1
{ [%eval -121,15] [%emt 0:00:20] (Be1) } 79...Ke6
{ [%eval 249,16] [%emt 0:00:50] (Ne7) } 80.c6
{ [%eval -153,14] [%emt 0:00:20] (c6) } 80...bxc6
{ [%eval 250,16] [%emt 0:00:47] (d3) } 81.Rxa6
{ [%eval -229,15] [%emt 0:00:57] (Rxa6) } 81...Kd7
{ [%eval 246,15] [%emt 0:00:34] (d3) } 82.Ra7+
{ [%eval -122,14] [%emt 0:00:55] (Ra7) } 82...Kc8
{ [%eval 241,15] [%emt 0:00:34] (Kc8) } 83.Ra8+
{ [%eval -142,16] [%emt 0:00:54] (Ra8) } 83...Rb8
{ [%eval 250,15] [%emt 0:00: 34] (Kd7) } 84.Ra7
{ [%eval -128,16] [%emt 0:00:53] (Ra7) } 84...Rb7
{ [%eval 250,15] [%emt 0:00:27] (d3) } 85.Ra6
{ [%eval -133,14] [%emt 0:00:51] (Ra8) } 85...Kc7
{ [%eval 248,15] [%emt 0:00:34] (Kd7) } 86.Ra8
{ [%eval -144,14] [%emt 0:00:50] (Ra5) } 86...Rb8
{ [%eval 249,14] [%emt 0:00:34] (Rb8) } 87.Rxb8
{ [%eval -156,15] [%emt 0:00:49] (Ra1) } 87...Kxb8
{ [%eval 336,18] [%emt 0:00:33] (Kxb8) } 88.Ke2
{ [%eval -174,18] [%emt 0:00:47] (Ke2) } 88...Kc7
{ [%eval 339,18] [%emt 0:00:35] (d3) } 89.Kd2
{ [%eval -240,18] [%emt 0:00:46] (Kd1) } 89...Kd6
{ [%eval 345,19] [%emt 0:00: 35] (Ne7) } 90.Ke2
{ [%eval -324,18] [%emt 0:00:45] (Kc1) } 90...Kd5
{ [%eval 397,18] [%emt 0:00:35] (Kd5) } 91.Kd2
{ [%eval -331,17] [%emt 0:00:44] (Kd2) } 91...Nd6
{ [%eval 442,18] [%emt 0:00:34] (e3) } 92.Ke2
{ [%eval -360,18] [%emt 0:00:43] (b5) } 92...e3
{ [%eval 450,18] [%emt 0:00:35] (e3) } 93.Kd3
{ [%eval -379,18] [%emt 0: 00:42] (b5) } 93...Nb5
{ [%eval 423,21] [%emt 0:00:35] (Nf5) } 94.g4
{ [%eval -390,16] [%emt 0:00:41] (g4) } 94...hxg4
{ [%eval 487,20] [%emt 0:00:35] (hxg4) } 95.f5
{ [%eval -396,14] [%emt 0:00:40] (f5) } 95...gxf5
{ [%eval 619,18] [%emt 0:00:35] (gxf5) } 96.Bg3
{ [%eval -435,14] [%emt 0:00:39] (Bg3) } 96...Nc3
{ [%eval 696,17] [%emt 0: 00:36] (Nd6) } 97.b5
{ [%eval -475,13] [%emt 0:00:38] (h5) } 97...Ne4
{ [%eval 692,16] [%emt 0:00:36] (Ne4) } 98.bxc6
{ [%eval -502,13] [%emt 0:00:37] (Bf4) } 98...Nf2+
{ [%eval 1299,15] [%emt 0:00:36] (Kxc6) } 99.Ke2
{ [%eval -1148,12] [%emt 0:00:36] (Ke2) } 99...Ke4
{ [%eval 1884,17] [%emt 0:00:36] (Ke4) } 100.Kf1
{ [%eval -1993,14] [%emt 0:00:35] (Bxf2) } 0-1

[Event "41st Amateur D7"]
[Site "ChessGUI4"]
[Date "2013.07.11"]
[Round "31.2"]
[White "Butcher 1.64 64-bit"]
[Black "FireFly 2.6.0 64-bit"]
[Result "1-0"]
[BlackElo "2258"]
[ECO "B42"]
[EventDate "2013.??.??"]
[TimeControl "40/1500:40/1500:40/1500"]
[WhiteElo "2355"]

{ i5 Quad } 1.e4 { [%eval 0,1] [%emt 0:00:00] } 1...c5
{ [%eval 0,1] [%emt 0:00:00] } 2.Nf3 { [%eval 0,1] [%emt 0:00:00] } 2...e6
{ [%eval 0,1] [%emt 0:00:00] } 3.d4 { [%eval 0,1] [%emt 0:00:00] } 3...cxd4
{ [%eval 0,1] [%emt 0:00:00] } 4.Nxd4 { [%eval 0,1] [%emt 0:00:00] } 4...a6
{ [%eval 0,1] [%emt 0:00:00] } 5.Bd3 { [%eval 0,1] [%emt 0:00:00] } 5...g6
{ [%eval 0,1] [%emt 0:00:00] } 6.b3 { [%eval 0,1] [%emt 0:00:00] } 6...Bg7
{ [%eval 0,1] [%emt 0:00:00] } 7.Bb2 { [%eval 0,1] [%emt 0:00:00] } 7...Nf6
{ [%eval 0,1] [%emt 0:00:00] } 8.O-O { [%eval 0,1] [%emt 0:00:00] } 8...O-O
{ [%eval 0, 1] [%emt 0:00:00] } 9.Nf3 { [%eval 46,11] [%emt 0:01:04] } 9...d5
{ [%eval -48,12] [%emt 0:00:57] (d6) } 10.exd5
{ [%eval 48,11] [%emt 0:01:00] (exd5) } 10...exd5
{ [%eval -44,11] [%emt 0:00:56] (exd5) } 11.Re1
{ [%eval 40,11] [%emt 0:00:59] (Re1) } 11...Nc6
{ [%eval -42,10] [%emt 0:00:55] (Nc6) } 12.Na3
{ [%eval 27,10] [%emt 0:00:59] (Nbd2) } 12...Bg4
{ [%eval -20,11] [%emt 0:00:55] (Re8) } 13.h3
{ [%eval 26, 11] [%emt 0:01:04] (h3) } 13...Be6
{ [%eval -15,11] [%emt 0:00:54] (Bxf3) } 14.Nd4
{ [%eval 30,11] [%emt 0:01:03] (Ng5) } 14...Nxd4
{ [%eval -11,12] [%emt 0:00:53] (Nh5) } 15.Bxd4
{ [%eval 34,11] [%emt 0:00:58] (Bxd4) } 15...Rc8
{ [%eval -8,11] [%emt 0:00: 43] (Re8) } 16.Qd2
{ [%eval 34,11] [%emt 0:01:01] (Nb1) } 16...Qd6
{ [%eval 0,10] [%emt 0:00:43] (Ne4) } 17.Qc1
{ [%eval 8,11] [%emt 0:00:50] (Qa5) } 17...Rfd8
{ [%eval 5,11] [%emt 0:00:43] (Nh5) } 18.Be5
{ [%eval 29,11] [%emt 0:00:59] (Qb2) } 18...Qe7
{ [%eval -2,11] [%emt 0:00:42] (Qe7) } 19.Qb2
{ [%eval 22,11] [%emt 0:00:58] (Nb1) } 19...Nh5
{ [%eval -2,11] [%emt 0:00:42] (Nh5) } 20.Bxg7
{ [%eval 17,11] [%emt 0:00:57] (Bxg7) } 20...Nxg7
{ [%eval 1,11] [%emt 0:00:42] (Nxg7) } 21.Rad1
{ [%eval 17, 11] [%emt 0:00:49] (Rad1) } 21...Nh5
{ [%eval -16,11] [%emt 0:00:41] (Nh5) } 22.Bf1
{ [%eval 7,11] [%emt 0:00:46] (c4) } 22...b5
{ [%eval 1,11] [%emt 0:00:41] (Qf6) } 23.b4
{ [%eval 1,11] [%emt 0:00:47] (b4) } 23...Qd6
{ [%eval 0,11] [%emt 0:00:41] (Qf6) } 24.c4
{ [%eval 51,11] [%emt 0:00:47] (Qd4) } 24...bxc4
{ [%eval -4,12] [%emt 0:00:40] (bxc4) } 25.Nxc4
{ [%eval 56,11] [%emt 0:00:45] (Nxc4) } 25...Qc6
{ [%eval -17,12] [%emt 0:00:40] (Qc6) } 26.Na5
{ [%eval 57,11] [%emt 0:00:45] (Ne5) } 26...Qb6
{ [%eval -25,12] [%emt 0:00:39] (Qb6) } 27.Qd4
{ [%eval 51,11] [%emt 0:00:44] (Qd4) } 27...Rb8
{ [%eval -26,12] [%emt 0:00:39] (Rd6) } 28.Qh4
{ [%eval 65,11] [%emt 0:00:43] (a3) } 28...Ng7
{ [%eval 14,10] [%emt 0:00:38] (Ng7) } 29.a3
{ [%eval 74,11] [%emt 0:00:42] (a3) } 29...Bf5
{ [%eval -4,10] [%emt 0:00:38] (Qd6) } 30.Be2
{ [%eval 64,10] [%emt 0:00:42] (Qd4) } 30...Rd6
{ [%eval 0,10] [%emt 0:00:37] (Be4) } 31.Bf3
{ [%eval 62,11] [%emt 0:00:40] (Bf3) } 31...Be6
{ [%eval -18,11] [%emt 0:00:37] (d4) } 32.Qf4
{ [%eval 105,11] [%emt 0:00:39] (Nb3) } 32...Rbd8
{ [%eval -24,11] [%emt 0:00: 36] (Qd8) } 33.Rc1
{ [%eval 91,10] [%emt 0:00:35] (Nb3) } 33...h5
{ [%eval -22,10] [%emt 0:00:36] (Bf5) } 34.Re5
{ [%eval 130,10] [%emt 0:00:33] (Qg5) } 34...R8d7
{ [%eval -33,10] [%emt 0:00:35] (Bf5) } 35.Nb3
{ [%eval 142,10] [%emt 0:00:31] (Rc8) } 35...Qb8
{ [%eval -66,10] [%emt 0:00:34] (Qd8) } 36.Nc5
{ [%eval 190,10] [%emt 0:00:28] (Nc5) } 36...Rd8
{ [%eval -81,10] [%emt 0:00:34] (Ra7) } 37.Rd1
{ [%eval 179, 9] [%emt 0:00:26] (Rd1) } 37...Kh7
{ [%eval -86,10] [%emt 0:00:33] (a5) } 38.Be2
{ [%eval 205,9] [%emt 0:00:24] (Nxe6) } 38...Qa7
{ [%eval -106,10] [%emt 0:00:32] (Qa7) } 39.Re1
{ [%eval 193,8] [%emt 0:00:17] (Re1) } 39...Kg8
{ [%eval -132,10] [%emt 0:00: 31] (Bf5) } 40.Bd3
{ [%eval 222,9] [%emt 0:00:15] (Bd3) } 40...Qb6
{ [%eval -152,10] [%emt 0:00:30] (a5) } 41.Nxa6
{ [%eval 226,10] [%emt 0:00:49] (Nxa6) } 41...Bf5
{ [%eval -160,11] [%emt 0:00:35] (Bf5) } 42.Nc5
{ [%eval 218,11] [%emt 0:00:49] (Nc5) } 42...Bxd3
{ [%eval -170,11] [%emt 0:00:35] (Bxd3) } 43.Nxd3
{ [%eval 238,11] [%emt 0:00:49] (Nxd3) } 43...f6
{ [%eval -192,11] [%emt 0:00:35] (Ne6) } 44.R5e2
{ [%eval 244,12] [%emt 0:00:48] (R5e2) } 44...g5
{ [%eval -193,11] [%emt 0:00:35] (Nf5) } 45.Qf3
{ [%eval 285,13] [%emt 0:00:48] (Qf3) } 45...Rc8
{ [%eval -230,11] [%emt 0:00: 35] (Qd4) } 46.Nc5
{ [%eval 348,11] [%emt 0:00:53] (Nc5) } 46...Qc6
{ [%eval -253,11] [%emt 0:00:35] (Qa7) } 47.Qd3
{ [%eval 358,11] [%emt 0:00:50] (a4) } 47...f5
{ [%eval -286,11] [%emt 0:00:35] (Kf8) } 48.Re7
{ [%eval 379,11] [%emt 0:00:51] (Qd4) } 48...d4
{ [%eval -340,11] [%emt 0:00:35] (d4) } 49.Qg3
{ [%eval 388,10] [%emt 0:00:51] (Qd2) } 49...Kh8
{ [%eval -308,10] [%emt 0:00:35] (f4) } 50.h4
{ [%eval 419,11] [%emt 0:00:50] (a4) } 50...f4
{ [%eval -362,11] [%emt 0:00:35] (g4) } 51.Qd3
{ [%eval 451,12] [%emt 0:00:45] (Qd3) } 51...Rc7
{ [%eval -403,12] [%emt 0:00:35] (Rc7) } 52.hxg5
{ [%eval 461,12] [%emt 0:00:48] (Rxc7) } 52...Rxe7
{ [%eval -412,12] [%emt 0:00:35] (Rxe7) } 53.Rxe7
{ [%eval 499,12] [%emt 0:00:48] (Rxe7) } 53...f3
{ [%eval -455,12] [%emt 0:00:35] (Qd5) } 54.Rf7
{ [%eval 551,12] [%emt 0:00:41] (Rf7) } 54...Qe8
{ [%eval -503,12] [%emt 0:00:35] (Qe8) } 55.Qxf3
{ [%eval 651,12] [%emt 0:00:40] (Qxf3) } 55...Kg8
{ [%eval -596,12] [%emt 0:00:35] (Kg8) } 56.Ra7
{ [%eval 669,12] [%emt 0:00:40] (Ra7) } 56...Kh8
{ [%eval -603,12] [%emt 0:00:35] (Qe1) } 57.Ne6
{ [%eval 725,12] [%emt 0:00:40] (Qf4) } 57...Nxe6
{ [%eval -766,13] [%emt 0:00:36] (Rc6) } 1-0

[Event "41st Amateur D7"]
[Site "ChessGUI4"]
[Date "2013.07.11"]
[Round "31.3"]
[White "Gibbon 2.57a 64-bit"]
[Black "ChessKiss 1.7 64-bit"]
[Result "0-1"]
[BlackElo "2214"]
[ECO "A87"]
[EventDate "2013.??.??"]
[TimeControl "40/1500:40/1500:40/1500"]
[WhiteElo "2251"]

{ i5 Quad } 1.Nf3 { [%eval 0,1] [%emt 0:00:00] } 1...d6
{ [%eval 0,1] [%emt 0:00:00] } 2.d4 { [%eval 0,1] [%emt 0:00:00] } 2...g6
{ [%eval 0,1] [%emt 0:00:00] } 3.c4 { [%eval 0,1] [%emt 0:00:00] } 3...f5
{ [%eval 0,1] [%emt 0:00:00] } 4.Nc3 { [%eval 0,1] [%emt 0:00:00] } 4...Nf6
{ [%eval 0,1] [%emt 0:00:00] } 5.g3 { [%eval 0,1] [%emt 0:00: 00] } 5...Bg7
{ [%eval 0,1] [%emt 0:00:00] } 6.Bg2 { [%eval 0,1] [%emt 0:00:00] } 6...O-O
{ [%eval 0,1] [%emt 0:00:00] } 7.O-O { [%eval 0,1] [%emt 0:00:00] } 7...Qe8
{ [%eval 0, 1] [%emt 0:00:00] } 8.d5 { [%eval 0,1] [%emt 0:00:00] } 8...Na6
{ [%eval 0,1] [%emt 0: 00:00] } 9.Nd4 { [%eval 37,13] [%emt 0:01:49] }
9...Nc5 { [%eval -62,11] [%emt 0:00: 43] (Bd7) } 10.Qc2
{ [%eval 47,12] [%emt 0:00:52] (Bf4) } 10...Nfe4
{ [%eval -43,10] [%emt 0:00:41] (a6) } 11.Nxe4
{ [%eval 53,13] [%emt 0:00:30] (Nxe4) } 11...Nxe4
{ [%eval -29,12] [%emt 0:00:40] (Bxd4) } 12.Nb5
{ [%eval 78,14] [%emt 0:00:25] (Bxe4) } 12...Qd8
{ [%eval -26,12] [%emt 0:00:39] (Qd8) } 13.Bxe4
{ [%eval 85,15] [%emt 0:01:08] (Be3) } 13...fxe4
{ [%eval -2,13] [%emt 0:00:38] (fxe4) } 14.Qxe4
{ [%eval 76,15] [%emt 0:01:11] (Qxe4) } 14...Bh3
{ [%eval -12,12] [%emt 0:00:37] (Bf5) } 15.Rd1
{ [%eval 89,13] [%emt 0:00:25] (Rd1) } 15...Qd7
{ [%eval -20,11] [%emt 0:00:35] (c5) } 16.Nd4
{ [%eval 87,13] [%emt 0:00:37] (Nd4) } 16...Kh8
{ [%eval -36,10] [%emt 0: 00:35] (Rae8) } 17.Bg5
{ [%eval 104,11] [%emt 0:00:21] (Bg5) } 17...h6
{ [%eval -59,10] [%emt 0:00:33] (Rae8) } 18.Qh4
{ [%eval 99,12] [%emt 0:00:22] (Be3) } 18...Kh7
{ [%eval -35,12] [%emt 0:00:33] (Qg4) } 19.Bxe7
{ [%eval 104,13] [%emt 0:00:38] (Bxe7) } 19...Rf7
{ [%eval -58,12] [%emt 0:00:32] (Rf7) } 20.Bg5
{ [%eval 115,14] [%emt 0:00:18] (Bg5) } 20...Re8
{ [%eval -77,11] [%emt 0:00:36] (Qg4) } 21.f3
{ [%eval 143,13] [%emt 0:00:31] (f3) } 21...c5
{ [%eval -76,11] [%emt 0:00:30] (Re5) } 22.dxc6
{ [%eval 205,12] [%emt 0:00:26] (dxc6) } 22...bxc6
{ [%eval -69,12] [%emt 0: 00:29] (bxc6) } 23.Bf4
{ [%eval 176,12] [%emt 0:00:33] (g4) } 23...c5
{ [%eval -104,10] [%emt 0:00:32] (h5) } 24.Nb3
{ [%eval 84,13] [%emt 0:00:36] (Nb3) } 24...Rxe2
{ [%eval -40,11] [%emt 0:00:27] (Rxe2) } 25.Rxd6
{ [%eval 73,12] [%emt 0:00:16] (Nxc5) } 25...Qf5
{ [%eval -90,10] [%emt 0:00:27] (Rxf4) } 26.Rd2
{ [%eval -44,12] [%emt 0:00:46] (Rd2) } 26...Rfe7
{ [%eval 114,11] [%emt 0:00:25] (Rfe7) } 27.Rxe2
{ [%eval -202,12] [%emt 0:00:17] (Rc1) } 27...Rxe2
{ [%eval 182,13] [%emt 0:00:25] (Rxe2) } 28.Rc1
{ [%eval -286,12] [%emt 0:00:24] (g4) } 28...g5
{ [%eval 462,12] [%emt 0:00:23] (a5) } 29.Qh5
{ [%eval -703,12] [%emt 0:00:16] (Qh5) } 29...Qd7
{ [%eval 683, 11] [%emt 0:00:21] (Bxb2) } 30.Be3
{ [%eval -849,12] [%emt 0:00:12] (Be3) } 30...Bxb2
{ [%eval 871,11] [%emt 0:00:23] (Bxb2) } 31.Rf1
{ [%eval -1001,13] [%emt 0:00:13] (Rf1) } 31...Rxe3
{ [%eval 1000,13] [%emt 0:00:22] (Rxe3) } 32.f4
{ [%eval -1357,14] [%emt 0:00:27] (f4) } 32...Rxb3
{ [%eval 1122,12] [%emt 0:00:20] (Rxb3) } 0-1